[Event "44th Chess Olympiad Open 2022"]
[Site "Chennai"]
[Date "2022.08.07"]
[Round "9.75"]
[White "Cheikhna, Mohamed Lemine"]
[Black "Amba Oyon Marius Claude"]
[Result "0-1"]
[ECO "D02"]
[WhiteElo "1899"]
[BlackElo "1938"]
[Annotator "TA"]
[PlyCount "86"]
[EventDate "2022.07.29"]
[EventType "team-tourn"]
[EventCountry "IND"]
[SourceTitle "playchess.com"]
[Source "ChessBase"]
[SourceQuality "1"]
[WhiteTeam "MTN"]
[BlackTeam "CMR"]
[TimeControl "40/5400+30:1800+30"]

{[%evp 13,85,-7,-2,-8,4,0,0,-4,-9,-21,0,-10,-10,-31,-11,-31,-25,-19,0,0,0,0,0,0,81,25,58,71,63,69,82,81,80,77,93,83,81,67,91,99,93,47,76,56,94,92,110,92,121,92,102,91,95,55,87,87,89,87,108,0,104,-14,-14,-14,-14,-17,-17,-956,-925,-760,-703,-776,-765,-29999]} 1. Nf3 {[%emt 0:01:51]} d5 {[%emt 0:01:21]} 2. d4 {[%emt 0:00:00]} Nf6 {[%emt 0:02:00]} 3. Bf4 {[%emt 0:00:00]} g6 {[%emt 0:03:17]} 4. e3 {[%emt 0:00:22]} Bg7 {[%emt 0:00:26]} 5. Bd3 {[%emt 0:01:46]} O-O {[%emt 0:00:30]} 6. Nbd2 {[%emt 0:00:48]} c5 {[%emt 0:01:42]} 7. c3 {[%emt 0:00:27]} Nc6 {[%emt 0:00:29]} 8. O-O {[%emt 0:00:17] D02: 1 d4 d5 2 Nf3 sidelines, including 2...Nf6 3 g3 and 2...Nf6 3 Bf4.} Re8 {[%emt 0:03:36]} 9. h3 {[%emt 0:01:40]} ({Don't blunder} 9. dxc5 $2 e5 10. Bg5 e4 $19) 9... Nd7 {[%emt 0:09:17]} 10. Bc2 {[%emt 0:08:31] The position is equal.} e5 {[%emt 0:03:48]} 11. dxe5 {[%emt 0:00:25]} Ndxe5 {[%emt 0:00:47]} 12. Nxe5 {[%emt 0:02:30]} Nxe5 {[%emt 0:01:17] [#]} 13. Bxe5 $146 {[%emt 0:09:07]} ({Predecessor:} 13. Nf3 Nxf3+ 14. Qxf3 Be6 15. Rfd1 Qb6 16. Rab1 Rad8 17. Ba4 Rf8 18. Bb3 d4 19. Bxe6 fxe6 20. cxd4 cxd4 {½-½ (74) Batsiashvili,N (2459)-Shaydullina,S (2033) St Petersburg 2018}) 13... Bxe5 {[%emt 0:00:59]} 14. Nf3 {[%emt 0:00:42]} Bf6 {[%emt 0:00:19]} 15. Qd2 {[%emt 0:00:50]} Qb6 {[%emt 0:03:49]} 16. Bb3 {[%emt 0:04:11]} Bf5 {[%emt 0:06:52]} 17. Qxd5 {[%emt 0:13:55]} Be6 {[%emt 0:17:41] Active counter play! A strong pair of Bishops.} 18. Qd1 {[%emt 0:02:38]} Rad8 {[%emt 0:00:31]} (18... Red8 $11 19. Qe2 Bxb3 20. axb3 Qxb3) 19. Qc1 {[%emt 0:01:23]} (19. Qe2 $16) 19... Bxb3 {[%emt 0:12:25]} 20. axb3 {[%emt 0:00:20]} Qxb3 {[%emt 0:00:27]} 21. Rxa7 {[%emt 0:01:29]} Rd7 {[%emt 0:00:25]} 22. Ra3 {[%emt 0:00:26]} Qb5 {[%emt 0:00:21]} 23. Qc2 {[%emt 0:02:18]} Red8 {[%emt 0:01:56]} 24. Rfa1 {[%emt 0:08:38]} Kg7 {[%emt 0:02:27]} 25. Ra8 {[%emt 0:08:23]} Rd1+ {[%emt 0:04:37]} 26. Rxd1 {[%emt 0:00:52]} Rxa8 {[%emt 0:00:08]} 27. b3 {[%emt 0:07:37]} ({White should play} 27. g4 $16) 27... Ra3 $14 {[%emt 0:01:04]} 28. Rb1 {[%emt 0:06:38]} Qa6 {[%emt 0:07:14] [#]} 29. c4 $1 {[%emt 0:01:50]} Qa5 {[%emt 0:02:33]} 30. Qd3 {[%emt 0:03:34]} Qc7 {[%emt 0:06:47]} 31. Qd5 {[%emt 0:01:58]} Ra8 {[%emt 0:00:51]} 32. Qe4 {[%emt 0:04:54]} Rd8 {[%emt 0:00:34]} 33. Qf4 {[%emt 0:01:00]} Qe7 {[%emt 0:01:34]} 34. e4 {[%emt 0:01:19] Strongly threatening e5.} Bc3 {[%emt 0:02:25]} 35. Qe3 {[%emt 0:01:16]} Bb4 {[%emt 0:00:22]} 36. Qf4 {[%emt 0:01:28]} ({White should try} 36. Ra1 $16) 36... Rd3 {[%emt 0:00:57] [#]} (36... Bc3 $1 $11 {remains equal.}) 37. Ne5 {[%emt 0:02:01]} (37. e5 $1 $16) 37... Bd2 $11 {[%emt 0:00:52]} 38. Qh2 {[%emt 0:00:51]} Rd4 {[%emt 0:01:05]} 39. Nf3 {[%emt 0:00:21]} Qxe4 {[%emt 0:00:45]} 40. Nxd2 {[%emt 0:00:37][%mdl 8192] [#] This move loses the game for White.} (40. Qe5+ $11 Qxe5 41. Nxe5) 40... Qxb1+ $3 $19 {[%emt 0:00:22][%mdl 512]} 41. Nf1 {[%emt 0:30:32]} Qe1 {[%emt 0:30:47] White must now prevent ...Rd1.} 42. g3 {[%emt 0:00:58]} Rd1 {[%emt 0:00:37][%csl Gd1][%cal Re1f1]} 43. f4 {[%emt 0:00:00]} Qxf1# {[%emt 0:00:00] Weighted Error Value: White=0.56/Black=0.19 (very precise)} 0-1

[Event "44th Chess Olympiad Open 2022"]
[Site "Chennai"]
[Date "2022.08.07"]
[Round "9.76"]
[White "Alharthi, Ahmed Mohammed A"]
[Black "Guterres, Cosme"]
[Result "1-0"]
[ECO "D02"]
[WhiteElo "1935"]
[BlackElo "1692"]
[Annotator "TA"]
[PlyCount "101"]
[EventDate "2022.07.29"]
[EventType "team-tourn"]
[EventCountry "IND"]
[SourceTitle "playchess.com"]
[Source "ChessBase"]
[SourceQuality "1"]
[WhiteTeam "KSA"]
[BlackTeam "TLS"]
[TimeControl "40/5400+30:1800+30"]

{[%evp 9,101,15,18,14,29,27,33,31,46,41,83,0,59,0,47,37,79,55,57,53,52,50,50,28,33,10,51,26,49,59,65,55,70,48,82,40,45,58,64,69,64,73,113,90,101,69,140,140,151,152,199,193,198,201,247,265,287,280,596,580,655,649,708,704,789,777,1007,1031,1355,1333,1516,1502,1542,1555,1706,1695,29984,29985,29986,29987,29987,29988,29988,29989,29989,5343,29986,8263,29987,29988,29986,29987,29992,29993]} 1. d4 {[%emt 0:00:04]} d5 {[%emt 0:00:19]} 2. Bf4 {[%emt 0:00:13]} Nf6 {[%emt 0:00:11]} 3. e3 {[%emt 0:00:10]} c6 {[%emt 0:00:45]} 4. Nf3 {[%emt 0:02:38]} Bg4 {[%emt 0:00:28]} 5. Bd3 {[%emt 0:03:01]} e6 {[%emt 0:00:38]} 6. O-O {[%emt 0:00:24] D02: 1 d4 d5 2 Nf3 sidelines, including 2...Nf6 3 g3 and 2...Nf6 3 Bf4.} Be7 {[%emt 0:00:20]} 7. h3 {[%emt 0:00:44]} Bh5 {[%emt 0:00:58]} 8. c4 {[%emt 0:01:15] [#] White is slightly better.} a6 $146 {[%emt 0:01:13]} ({Predecessor:} 8... O-O 9. Nbd2 c5 10. Qb3 b6 11. Ne5 dxc4 12. Qxc4 Nd5 13. Bh2 f6 14. Nef3 Nc6 15. dxc5 Bxc5 {0-1 (62) Granat,S-Lehtinen,A (2160) Jyvaskyla 1998}) 9. Qb3 {[%emt 0:06:00]} Qc8 {[%emt 0:02:25]} 10. c5 {[%emt 0:03:02]} (10. Nbd2 $16) 10... O-O {[%emt 0:00:43]} ({Better is} 10... Bxf3 $11 11. gxf3 Nbd7) 11. Nc3 {[%emt 0:01:06]} (11. Nbd2 $14) 11... Nbd7 {[%emt 0:01:05]} (11... Bxf3 $11 {should be considered.} 12. gxf3 Nbd7) 12. Nd2 {[%emt 0:05:11]} Ne8 {[%emt 0:02:19]} 13. e4 {[%emt 0:01:25] 0x0.00144f73bfdddp-1022s more active pieces.} Bg6 {[%emt 0:00:54]} 14. Rfe1 {[%emt 0:01:51]} Bd8 {[%emt 0:01:53]} 15. Qc2 {[%emt 0:08:31]} b6 {[%emt 0:00:49]} 16. cxb6 {[%emt 0:02:53]} Bxb6 {[%emt 0:01:15]} 17. Nf3 {[%emt 0:01:14]} Qb7 {[%emt 0:01:10]} (17... c5 {seems wilder.} 18. dxc5 Nxc5 19. Ne5 Nxd3 20. Qxd3 Qb7) 18. b4 {[%emt 0:01:28]} Rc8 {[%emt 0:02:08]} 19. Qe2 {[%emt 0:06:05]} Ra8 {[%emt 0:00:36]} 20. e5 {[%emt 0:08:08]} Bd8 {[%emt 0:01:53]} 21. Bd2 {[%emt 0:02:52]} Nb6 {[%emt 0:00:45]} 22. Rab1 {[%emt 0:03:38]} Bxd3 {[%emt 0:01:43]} 23. Qxd3 {[%emt 0:00:06]} Nc4 {[%emt 0:00:52]} 24. Na4 {[%emt 0:01:34]} Qc8 {[%emt 0:01:37]} 25. Rec1 {[%emt 0:03:26]} Rb8 {[%emt 0:03:46] White stays focused until the end.} 26. Nc5 {[%emt 0:02:08]} Nc7 {[%emt 0:04:10]} 27. Bf4 {[%emt 0:03:15]} Nb5 {[%emt 0:01:23]} (27... a5 $14) 28. a4 $36 {[%emt 0:01:17][%mdl 2048] Black is under strong pressure.} Nc7 {[%emt 0:01:27]} 29. Nd2 {[%emt 0:03:13]} Nxd2 {[%emt 0:02:37]} (29... a5 $16 {was worth a try.} 30. Nxc4 dxc4 31. Qxc4 Nd5) 30. Bxd2 $18 {[%emt 0:00:06]} ({But not} 30. Qxd2 $6 Na8 $16) 30... Be7 {[%emt 0:01:16]} 31. Rc2 {[%emt 0:04:30]} Bxc5 {[%emt 0:02:00]} 32. Rxc5 {[%emt 0:00:41]} ({Less strong is} 32. dxc5 Qe8 $14) 32... Qd7 {[%emt 0:01:44]} 33. Rbc1 {[%emt 0:00:38]} Ne8 $2 {[%emt 0:01:27] [#]} (33... Rb7 34. Rxc6 Ra8) 34. Rxc6 {[%emt 0:00:31]} f6 {[%emt 0:01:29]} 35. Qxa6 {[%emt 0:01:07]} fxe5 {[%emt 0:00:48]} 36. dxe5 {[%emt 0:01:06]} Qf7 {[%emt 0:00:56]} 37. Qe2 {[%emt 0:00:16]} Qf5 {[%emt 0:01:28]} 38. b5 {[%emt 0:00:26][%cal Bb4b5,Bb5b6][%mdl 32]} Rd8 {[%emt 0:01:07]} 39. b6 {[%emt 0:01:39]} d4 {[%emt 0:00:30]} 40. a5 {[%emt 0:02:07]} Rd5 {[%emt 0:00:38]} 41. f4 {[%emt 0:31:49]} d3 {[%emt 0:31:17]} 42. Qg4 {[%emt 0:00:28]} Qe4 {[%emt 0:00:49]} 43. Qxe6+ {[%emt 0:00:50]} Kh8 {[%emt 0:00:40]} 44. Rc8 {[%emt 0:00:13]} h6 {[%emt 0:01:47]} 45. Rxe8 {[%emt 0:02:08]} Rxe8 {[%emt 0:00:46]} 46. Qxe8+ {[%emt 0:00:06]} Kh7 {[%emt 0:00:37]} 47. Qh5 {[%emt 0:00:53]} (47. Rc8 $142 Rc5 48. Qg8+ Kg6 49. f5+ Qxf5 50. b7 Qxe5 51. b8=Q Rxc8 52. Qgxc8) 47... Rd4 {[%emt 0:01:36]} 48. Qf3 {[%emt 0:00:58]} (48. f5 $142 Rd8 49. e6 Qa4 50. Qg6+ Kh8 51. Bc3 Rd4 52. b7 Qb4 53. Bxb4 Rd8 54. Rc8 Rg8 55. Rxg8+ Kxg8 56. b8=Q#) 48... Qf5 {[%emt 0:00:32]} 49. b7 {[%emt 0:00:46] White mates.} Rd8 {[%emt 0:00:32]} 50. a6 {[%emt 0:00:40][%cal Ba5a6,Ba6a7][%mdl 32]} h5 {[%emt 0:00:18]} 51. a7 {[%emt 0:00:26] Weighted Error Value: White=0.14 (very precise) /Black=0.35} 1-0

[Event "44th Chess Olympiad Open 2022"]
[Site "Chennai"]
[Date "2022.08.07"]
[Round "9.77"]
[White "Nor, Mohamed Ahmed"]
[Black "Khalema, Sechaba"]
[Result "1/2-1/2"]
[ECO "B13"]
[WhiteElo "1907"]
[BlackElo "1790"]
[Annotator "TA"]
[PlyCount "110"]
[EventDate "2022.07.29"]
[EventType "team-tourn"]
[EventCountry "IND"]
[SourceTitle "playchess.com"]
[Source "ChessBase"]
[SourceQuality "1"]
[WhiteTeam "Somalia"]
[BlackTeam "Lesotho"]
[WhiteTeamCountry "SOM"]
[BlackTeamCountry "LES"]
[TimeControl "40/5400+30:1800+30"]

{[%evp 14,110,27,0,27,28,26,0,0,0,-8,-103,-107,-111,-109,-127,-35,-28,-26,-13,6,-28,-3,-51,31,25,89,91,70,28,102,35,163,146,185,183,204,210,209,205,209,50,41,31,194,196,181,19,132,136,201,133,108,84,143,125,154,140,134,53,51,-81,-82,-81,-85,-84,-74,-91,0,0,0,-541,-28,-94,-87,-93,-96,-166,-153,-540,-22,-34,-34,-158,-7,-8,-7,-12,-12,-39,0,-10,0,-250,0,-100,0,-202,0]} 1. e4 {[%emt 0:00:49]} c6 {[%emt 0:05:42]} 2. d4 {[%emt 0:00:15]} d5 {[%emt 0:00:02]} 3. exd5 {[%emt 0:00:38]} cxd5 {[%emt 0:00:03]} 4. Nf3 {[%emt 0:00:24]} Nc6 {[%emt 0:00:08]} 5. c3 {[%emt 0:00:57]} Nf6 {[%emt 0:00:09]} 6. Bd3 {[%emt 0:00:28]} Bg4 {[%emt 0:00:13]} 7. O-O {[%emt 0:00:32]} e6 {[%emt 0:00:03]} 8. Re1 {[%emt 0:00:49] 8.Bf4 is the modern continuation.} Be7 {[%emt 0:00:13] B13: Caro-Kann: Exchange Variation and Panov-Botvinnik Attack.} 9. h3 {[%emt 0:00:21]} Bh5 {[%emt 0:00:07]} 10. Nbd2 {[%emt 0:00:47]} O-O {[%emt 0:00:10] The position is equal.} 11. Qc2 {[%emt 0:01:10]} Rc8 {[%emt 0:00:13][%cal Oc6b4] [#]} 12. Ne5 $146 {[%emt 0:00:51] [#]} (12. Qd1 $11) ({Predecessor:} 12. a3 a6 13. Qd1 b5 14. Nf1 Qb6 15. Ng3 Bg6 16. Bxg6 hxg6 17. Bf4 a5 18. Qd3 {0-1 (45) Hartung,L (1777)-Hornych,C (2056) Mecklenburg VP 2018}) 12... Nxd4 $1 $17 {[%emt 0:00:13][%mdl 512]} 13. Qa4 {[%emt 0:00:54]} Nc6 {[%emt 0:00:06]} 14. Nxc6 {[%emt 0:00:33]} Rxc6 {[%emt 0:01:06]} (14... bxc6 $17 15. Qxa7 c5) 15. Qxa7 $15 {[%emt 0:00:22]} Bc5 {[%emt 0:00:06]} 16. Qa4 {[%emt 0:01:07]} (16. Qxb7 Qd6 17. Qb5 Rb8 $17) 16... Qd6 {[%emt 0:00:05] Hoping for ...Qg3.} 17. Nf1 {[%emt 0:02:14] Prevents Qg3.} e5 {[%emt 0:00:21]} (17... d4 $5 {[%cal Rd4c3]}) 18. Qh4 {[%emt 0:02:12]} (18. Bg5 $11) 18... e4 {[%emt 0:01:51]} (18... Bg6 $15 19. Bb5 Rcc8) 19. Bb5 $14 {[%emt 0:00:46]} Rb6 {[%emt 0:00:25]} (19... Rcc8 $1 $11) 20. a4 $1 $16 {[%emt 0:00:14]} (20. Bf4 Qe7 21. a4 h6 $14) 20... Qe6 {[%emt 0:01:22]} 21. Bg5 {[%emt 0:02:13]} Bg6 {[%emt 0:00:13]} (21... h6 $11 22. Bxf6 Qxf6 23. Qxf6 Rxf6) 22. Rad1 {[%emt 0:02:26]} (22. Be3 $16 Qe7 23. Rad1) 22... Qf5 {[%emt 0:00:56]} (22... Be7 $14) 23. Be3 {[%emt 0:02:40]} Rc8 {[%emt 0:00:42]} 24. Bd4 {[%emt 0:01:55]} Bxd4 {[%emt 0:08:53]} 25. Rxd4 {[%emt 0:00:19]} Rd6 {[%emt 0:00:46]} 26. Qg3 {[%emt 0:01:20]} Qe6 {[%emt 0:00:11]} 27. Nd2 $2 {[%emt 0:03:44]} (27. Ne3 $18) 27... Nh5 $14 {[%emt 0:00:23]} 28. Qh2 {[%emt 0:01:16] g4 is the strong threat.} Rdd8 $2 {[%emt 0:00:16]} (28... f5 $1 $14) 29. g4 $18 {[%emt 0:01:55]} Nf6 {[%emt 0:12:58]} 30. Qg3 $2 {[%emt 0:00:35]} (30. f4 $1 $18) 30... h6 {[%emt 0:00:23]} (30... h5 $11 {keeps the balance.}) 31. f4 $1 $16 {[%emt 0:01:22]} Qd6 {[%emt 0:02:37]} (31... Qb6 $16 {keeps fighting.}) 32. Qe3 {[%emt 0:00:46]} Bh7 {[%emt 0:01:03]} 33. Kg2 {[%emt 0:00:30]} Kf8 {[%emt 0:00:26]} (33... Ne8 $142) 34. Re2 {[%emt 0:01:56] White is more active.} Qe6 {[%emt 0:00:34]} 35. Nf1 {[%emt 0:02:01]} h5 {[%emt 0:00:36]} 36. g5 {[%emt 0:01:30]} (36. f5 $1 $16 {[%cal Rf5e6]} Qd6 37. Qg3) 36... Ng8 $14 {[%emt 0:00:03][%cal Bf6g8,Bg8e7,Be7f5][%mdl 32]} 37. Rf2 {[%emt 0:00:50]} (37. Qg3 $1 $14 {stays ahead.}) 37... Ne7 $17 {[%emt 0:00:12]} 38. c4 {[%emt 0:02:01]} Nf5 $36 {[%emt 0:00:10][%mdl 2048] Keeping White busy.} ({Don't play} 38... dxc4 $6 39. Bxc4 Qc6 40. Bb5 $15) 39. Qa3+ {[%emt 0:00:40]} Kg8 {[%emt 0:00:57]} 40. cxd5 {[%emt 0:00:25]} Rxd5 {[%emt 0:00:15]} (40... Qb6 $1 $17 {[%cal Rb6d4]} 41. Rd1 Rc5) 41. Rxd5 $11 {[%emt 0:30:41]} Qxd5 {[%emt 0:32:36]} 42. Ne3 $2 {[%emt 0:00:02][%mdl 8192]} (42. Rd2 $11 {and White has nothing to worry.} Nh4+ 43. Kg3 Nf5+ 44. Kg2 Nh4+ 45. Kg3 Nf5+ 46. Kg2) 42... Qe6 $2 {[%emt 0:01:39]} (42... Qd4 $19 43. Re2 Rc1) 43. Nxf5 {[%emt 0:01:23]} (43. Rd2 $11 Qb6 44. Nd5) 43... Bxf5 $17 {[%emt 0:00:15]} 44. Qe3 {[%emt 0:00:21]} Rd8 {[%emt 0:00:14]} 45. b3 {[%emt 0:03:24]} (45. Be2 $17) 45... Rd1 $19 {[%emt 0:01:30] White must now prevent ...Rb1.} 46. Rf1 $2 {[%emt 0:01:37] [#]} (46. Kh2 $17) 46... Qd6 $2 {[%emt 0:01:31]} ({Better is} 46... Bxh3+ $1 $19 {[%mdl 512]} 47. Qxh3 Rd2+ 48. Kg3 Qxb3+ 49. Kh4 Qc2) 47. Rxd1 $11 {[%emt 0:00:32]} Qxd1 {[%emt 0:00:04][%mdl 4096] Endgame KQB-KQB} 48. Be2 {[%emt 0:00:21]} ({White should play} 48. Bc4 $15) 48... Qc2 $2 {[%emt 0:01:33]} (48... Qe1 $17 {And now ...g6 would win.} 49. b4 g6) 49. Kg3 {[%emt 0:00:38]} g6 {[%emt 0:00:40]} 50. Bc4 $1 {[%emt 0:00:54]} Qd1 {[%emt 0:00:29]} 51. Kf2 {[%emt 0:02:34]} Qc2+ {[%emt 0:02:20]} (51... Qh1 $5 {[%cal Rf5h3]} 52. Bd5 h4 $15) 52. Ke1 {[%emt 0:01:53]} h4 {[%emt 0:00:50]} 53. Be2 $2 {[%emt 0:01:53]} (53. Qb6 $11) 53... Qc7 $2 {[%emt 0:00:12]} (53... Be6 $19 54. Bc4 Bxc4 55. bxc4 Qxc4) 54. Bf1 {[%emt 0:01:08] [#]} (54. Bc4 $1 $11 {remains equal.}) 54... Qc2 {[%emt 0:01:02]} (54... Be6 $1 $17 55. Kd2 Qd6+ 56. Kc3 {[#]} Bxb3 $1 57. Kxb3 Qd1+ 58. Kc3 Qxf1) 55. Be2 $19 {[%emt 0:00:24]} Qc7 $2 {[%emt 0:04:59] Never resign too early!  Weighted Error Value: White=0.69/Black=0.74} ({Black should try} 55... Be6 $19 56. Bc4 Bxc4 57. bxc4 Qxc4) 1/2-1/2

[Event "44th Chess Olympiad Open 2022"]
[Site "Chennai"]
[Date "2022.08.07"]
[Round "9.79"]
[White "Coulibaly, Abdoulaye"]
[Black "Nxumalo, Vuyo"]
[Result "0-1"]
[ECO "C23"]
[WhiteElo "1936"]
[BlackElo "1493"]
[Annotator "TA"]
[PlyCount "142"]
[EventDate "2022.07.29"]
[EventType "team-tourn"]
[EventCountry "IND"]
[SourceTitle "playchess.com"]
[Source "ChessBase"]
[SourceQuality "1"]
[WhiteTeam "Mali"]
[BlackTeam "SWZ"]
[WhiteTeamCountry "MLI"]
[TimeControl "40/5400+30:1800+30"]

{[%evp 9,142,59,96,116,104,26,48,24,77,106,132,129,206,179,231,156,292,304,357,224,224,160,164,159,141,158,154,159,161,154,145,131,187,164,569,565,554,118,108,110,124,122,119,78,95,36,43,28,81,39,41,-6,0,-8,-23,-10,-9,-20,0,-43,-23,-47,-73,-52,-33,-33,-33,-33,-32,-158,0,-145,-145,-232,-50,-88,0,-226,-237,-245,-243,-244,-218,-474,-445,-406,-382,-561,-539,-552,-552,-524,-504,-652,-426,-464,-453,-453,-438,-435,-385,-399,-385,-397,-372,-789,-258,-208,-43,-40,-36,-229,-40,-30,-29,-1187,-815,-29964,-29967,-29968,-29969,-29967,-29969,-29977,-29978,-29980,-29981,-29981,-29982,-29984,-29985,-29985,-29986,-29987,-29980]} 1. e4 {[%emt 0:00:09]} e5 {[%emt 0:01:40]} 2. Bc4 {[%emt 0:00:24]} Be7 {[%emt 0:03:25]} 3. Qh5 {[%emt 0:01:02]} g6 {[%emt 0:02:48]} 4. Qxe5 {[%emt 0:00:25]} Nf6 {[%emt 0:00:33]} 5. d3 {[%emt 0:00:43]} O-O {[%emt 0:00:15]} 6. Nc3 {[%emt 0:00:27] C23: Bishop's Opening: 2...Bc5.} Nc6 {[%emt 0:01:01]} 7. Qg3 {[%emt 0:00:55] [#]} (7. Qf4 $16) 7... Nd4 $146 {[%emt 0:00:29]} ({Predecessor:} 7... d6 8. Nge2 Ne5 9. Bb3 Nh5 10. Qe3 Be6 11. Nd5 f5 12. O-O fxe4 13. Qxe4 c6 14. Nxe7+ Qxe7 15. Bxe6+ Qxe6 {1-0 (27) Fischer,M (1779)-Baqui,K (1367) Frankfurt 2006}) 8. Bb3 {[%emt 0:00:16] White is slightly better.} Re8 {[%emt 0:00:34]} (8... d5 $1 $11) 9. Nge2 $16 {[%emt 0:01:03]} Nh5 {[%emt 0:01:32]} 10. Qe3 {[%emt 0:00:17]} Ne6 {[%emt 0:02:01]} (10... Nxb3 $16 11. axb3 b6) 11. O-O {[%emt 0:01:57]} d6 {[%emt 0:00:20]} (11... Nc5 $142 12. f4 c6) 12. Nd5 {[%emt 0:01:21]} Bg5 {[%emt 0:00:55]} (12... Bh4 $16 13. f4 c6) 13. f4 $18 {[%emt 0:00:34]} Bh6 {[%emt 0:00:32]} 14. Qf2 {[%emt 0:01:21]} c6 {[%emt 0:00:51]} 15. f5 {[%emt 0:01:25]} Bxc1 {[%emt 0:03:38]} 16. fxe6 {[%emt 0:01:18]} Bxe6 {[%emt 0:01:47]} 17. Raxc1 {[%emt 0:00:30]} cxd5 {[%emt 0:00:56]} 18. exd5 {[%emt 0:01:21]} Bf5 {[%emt 0:01:21]} 19. Nd4 {[%emt 0:00:52]} Ng7 {[%emt 0:01:28]} 20. Rce1 {[%emt 0:02:46]} Qg5 {[%emt 0:05:41]} (20... Rxe1 $16 {is a better defense.} 21. Rxe1 Bd7) 21. h4 {[%emt 0:02:56]} Qg4 $2 {[%emt 0:01:08]} (21... Qd8 22. Rxe8+ Qxe8) 22. Rxe8+ {[%emt 0:03:18]} Rxe8 {[%emt 0:00:14]} 23. Qf4 $2 {[%emt 0:00:15]} (23. c4 $18 {is more deadly. Bd1 is the strong threat.} Qh5 24. Bd1) 23... Qxf4 {[%emt 0:15:23]} 24. Rxf4 {[%emt 0:00:11] aiming for Nb5.} Nh5 {[%emt 0:00:11]} 25. Rf2 {[%emt 0:01:51]} ({Don't play} 25. Nxf5 $6 Nxf4 26. Nxd6 Rb8 $11) 25... Bd7 {[%emt 0:00:42]} 26. Kh2 {[%emt 0:01:20] Prevents Ng3.} Kg7 {[%emt 0:00:38]} 27. Bc4 {[%emt 0:01:56]} (27. Re2 $16) 27... a6 {[%emt 0:05:34]} 28. b4 {[%emt 0:01:11]} Re5 {[%emt 0:00:43]} (28... Nf6 $11) 29. Nf3 {[%emt 0:01:35]} Re3 {[%emt 0:00:54]} 30. Ng5 {[%emt 0:00:22]} (30. Nd2 $14 {should be considered.}) 30... Nf6 $11 {[%emt 0:01:17]} 31. Rf3 {[%emt 0:03:39]} Re2 {[%emt 0:01:01]} 32. Bb3 {[%emt 0:00:40]} h6 {[%emt 0:01:48]} 33. Nh3 {[%emt 0:01:11]} Ng4+ {[%emt 0:01:33][%mdl 1024] Black has compensation.} 34. Kg3 {[%emt 0:01:14]} Ne3 {[%emt 0:05:43]} 35. Nf4 {[%emt 0:00:17]} Nf5+ {[%emt 0:01:09]} 36. Kh2 {[%emt 0:01:38]} Re5 {[%emt 0:02:20]} 37. g3 {[%emt 0:04:13]} Nd4 $36 {[%emt 0:01:24][%mdl 2048] Black has good play.} 38. Rf2 {[%emt 0:00:18]} Bg4 {[%emt 0:00:52]} 39. c3 {[%emt 0:08:15]} (39. Ng2 $1 $15) 39... Nf5 $2 {[%emt 0:08:15] Black is more active.} (39... Nf3+ $1 $17 40. Kg2 Re3) 40. Bc2 {[%emt 0:08:12]} (40. Ng2 $11 {remains equal.}) 40... Re3 $17 {[%emt 0:01:35]} 41. Rg2 {[%emt 0:34:39]} (41. c4 $17) 41... Bf3 $2 {[%emt 0:31:19]} (41... g5 $19 42. hxg5 hxg5) 42. Rf2 $15 {[%emt 0:01:22][%cal Oh4h5]} Bg4 {[%emt 0:00:24]} (42... h5 $17) 43. Rg2 $19 {[%emt 0:00:05]} g5 {[%emt 0:00:46]} 44. hxg5 {[%emt 0:01:14]} hxg5 {[%emt 0:00:33]} 45. Nh3 {[%emt 0:00:03]} f6 {[%emt 0:03:40]} 46. a4 $2 {[%emt 0:04:08]} (46. Bb3) 46... Re8 {[%emt 0:01:17]} 47. Nf2 {[%emt 0:01:48]} Bf3 {[%emt 0:00:19][%csl LRd5,LRg2]} 48. g4 {[%emt 0:01:36]} (48. Bd1 {was the only defense.} Bxg2 49. Kxg2) 48... Bxg2 {[%emt 0:00:22]} 49. gxf5 {[%emt 0:00:24]} Bxd5 {[%emt 0:00:23][%mdl 4096] Endgame KRB-KBN} 50. Bd1 {[%emt 0:01:54] Prevents Re2.} Re1 {[%emt 0:00:52]} 51. c4 {[%emt 0:00:25]} Bc6 {[%emt 0:02:01] White must now prevent ...Rf1.} 52. b5 {[%emt 0:00:27]} Bd7 {[%emt 0:00:26]} 53. Bf3 {[%emt 0:01:39]} axb5 {[%emt 0:03:34]} 54. axb5 {[%emt 0:04:16]} b6 {[%emt 0:00:09]} 55. Be4 {[%emt 0:01:11]} Be8 {[%emt 0:01:53]} 56. Bc6 {[%emt 0:00:51]} Kf7 {[%emt 0:03:06]} 57. Ne4 $2 {[%emt 0:00:59]} (57. Ng4) 57... Ke7 $2 {[%emt 0:05:47]} (57... Bxc6 58. bxc6 Re2+ 59. Kh3 Rxe4 $1 60. dxe4 Ke7) 58. Bxe8 {[%emt 0:02:18] [#] Hoping for Bg6.} Kxe8 {[%emt 0:00:07]} (58... d5 $1 $19 {[%cal Rd5e4]} 59. Nc3 dxc4 60. dxc4 Kxe8) 59. Nxf6+ {[%emt 0:00:26] KR-KN} Kf7 {[%emt 0:01:10]} 60. Ne4 {[%emt 0:01:42]} ({White should play} 60. Nd7 $15) 60... g4 $2 {[%emt 0:02:03]} ({Black should try} 60... d5 $19 61. cxd5 Rd1 62. Nxg5+ Ke7 63. d6+ Kxd6 64. Ne4+ Ke5) 61. Nxd6+ $15 {[%emt 0:08:16]} Kf6 {[%emt 0:04:35]} 62. c5 $2 {[%emt 0:00:38][%mdl 8192]} (62. Kg3 $11) 62... bxc5 $19 {[%emt 0:00:00] ( -> ...Rd1)} 63. b6 {[%emt 0:00:00]} Rb1 {[%emt 0:00:00] Black mates.} 64. b7 {[%emt 0:00:00]} Ke5 {[%emt 0:00:00]} 65. Ne4 {[%emt 0:00:00]} Rxb7 {[%emt 0:00:00]} 66. Nxc5 {[%emt 0:00:00]} Rb4 {[%emt 0:00:00]} 67. Kg3 {[%emt 0:00:00]} Kxf5 {[%emt 0:00:00]} 68. Ne4 {[%emt 0:00:00]} Rd4 {[%emt 0:00:00]} 69. Nf2 {[%emt 0:00:00]} Rf4 {[%emt 0:00:00]} 70. Kg2 {[%emt 0:00:00]} Rf3 {[%emt 0:00:00]} 71. d4 {[%emt 0:00:00]} Rf4 {[%emt 0:12:43] Never resign too early!  Weighted Error Value: White=0.53/Black=0.59} 0-1